Workbook

Sheet 产业房及门面
A1: 招租标的清单
A2: 序号 | B2: 资产名称 | C2: 招租面积（㎡） | D2: 租期（年） （最终以现场踏勘确认书为准） | E2: 挂牌单价（元/㎡•月） | F2: 租赁保证金（元） | G2: 交易保证金 | H2: 租金支付方式 | I2: 用途限制 | J2: 是否存在担保抵押等情况 | K2: 免租期 | L2: 是否办理不动产权证及权证号 | M2: 承租方性质要求 | N2: 承租方资格条件 | O2: 备注
A4: 1 | B4: 汽贸城CD区负一层 | F4: 不低于一个月租金 | G4: =C4*E4*12*0.2 -> 0 | H4: 季度支付 | I4: 从事易燃易爆及危险化学品储存销售的除外。 | J4: 存在抵押 | K4: 按实际踏勘面积商谈免租期 | M4: 法人、自然人、其他组织 | N4: 有一定经济实力，依法设立并合法存续的法人组织或具有完全民事行为能力的自然人。 | O4: 该标的需承租方自筹资金接通用电设备，可拆分面积承租，承租面积以实际探勘为准，租金单价从第二年起在上一年基础上按3%标准递增
A5: 2 | B5: 汽贸城CD区一层 | G5: =C5*E5*12*0.2 -> 0
A6: 3 | B6: 汽贸城CD区二层 | G6: 0
A7: 1 | B7: 洛平新城16栋二层 | C7: 471.00 | D7: 1-3 | E7: 30.00 | G7: 33912 | L7: 黔(2021)花溪区不动产权第0002504号 | O7: 租金单价从第二年起在上一年基础上按3%标准递增
A8: 2 | B8: 洛平新城1栋二层 | C8: 744.93 | D8: 1-3 | E8: 20.00 | G8: 35757 | L8: 否
A9: 3 | B9: 洛平新城2栋一层 | C9: 413.71 | D9: 1-3 | E9: 30.00 | G9: 29787 | L9: 否
A10: 4 | B10: 洛平新城2栋二层 | C10: 781.18 | D10: 1-3 | E10: 20.00 | G10: 37497 | L10: 否
A11: 5 | B11: 关口寨14栋一层1-6号 | C11: 1199.10 | D11: 1-3 | E11: 15.00 | G11: 43168 | L11: 否 | O11: 该标的可拆分面积承租，承租面积以实际探勘为准，承租方承租时需自筹资金按实际探勘面积自行隔断，租金单价从第二年起在上一年基础上按3%标准递增
A12: 6 | B12: 关口寨16栋一层 | C12: 423.67 | D12: 1-3 | E12: 15.00 | G12: 15252 | L12: 否
A13: 7 | B13: 关口寨17栋一层 | C13: 476.72 | D13: 1-3 | E13: 15.00 | G13: 17162 | L13: 否
A14: 8 | B14: 关口寨综合楼一层 | C14: 433.70 | D14: 1-3 | E14: 18.00 | G14: 18736 | L14: 否
A15: 9 | B15: 关口寨综合楼二层 | C15: 907.02 | D15: 1-3 | E15: 12.00 | G15: 26122 | L15: 否
A16: 10 | B16: 洛平北街6栋1-13号 | C16: 202.36 | D16: 1-3 | E16: 22.00 | G16: 10685 | L16: 否 | O16: 租金单价从第二年起在上一年基础上按3%标准递增
A17: 11 | B17: 洛平北街1栋1-1-28号 | C17: 310.37 | D17: 1-3 | E17: 22.00 | G17: 16388 | L17: 否
A18: 12 | B18: 腾辉苑安置小区2-3栋 | C18: 976.60 | D18: 1-3 | E18: 15.00 | G18: 35158 | L18: 否 | O18: 租金单价从第二年起在上一年基础上按3%标准递增
A19: 13 | B19: 汽贸城安置房1-3栋二层 | C19: 276.30 | D19: 1-3 | E19: 12.00 | G19: 7957 | L19: 否 | O19: 该标的未独立区分，承租方承租时需自筹资金按招租方红线范围图自行隔断，招租方配合其隔断工作，租金单价从第二年起在上一年基础上按3%标准递增
A20: 14 | B20: 汽贸城安置房4-5栋一层 | C20: 70.55 | D20: 1-3 | E20: 35.00 | G20: 5926 | L20: 否 | O20: 租金单价从第二年起在上一年基础上按3%标准递增
A21: 15 | B21: 汽贸城安置房4-5栋一层 | C21: =312.07+550.34-70.55 -> 791.86 | D21: 1-3 | E21: 25.00 | G21: 47512 | L21: 否 | O21: 该标的可拆分面积承租，承租面积以实际探勘为准，承租方承租时需自筹资金按实际探勘面积自行隔断，租金单价从第二年起在上一年基础上按3%标准递增
A22: 16 | B22: 汽贸城安置房4-5栋二层 | C22: =650.22+652.74 -> 1302.96 | D22: 1-3 | E22: 12.00 | G22: 37525 | L22: 否
A23: 17 | B23: 汽贸城安置房6-7栋一层 | C23: 80.00 | D23: 1-3 | E23: 25.00 | G23: 4800 | L23: 否 | O23: 租金单价从第二年起在上一年基础上按3%标准递增
A24: 18 | B24: 汽贸城安置房8栋一层 | C24: 239.92 | D24: 1-3 | E24: 20.00 | G24: 11516 | L24: 否 | O24: 该标的未独立区分，承租方承租时需自筹资金按招租方红线范围图自行隔断，招租方配合其隔断工作，租金单价从第二年起在上一年基础上按3%标准递增
A25: 19 | B25: 汽贸城安置房8栋二层 | C25: 54.24 | D25: 1-3 | E25: 10.00 | G25: 1302 | L25: 否
A26: 20 | B26: 富源南路改貌农民新村安置房3栋二层 | C26: 1062.39 | D26: 1-3 | E26: 9.00 | G26: 22948 | L26: 否 | O26: 该标的可拆分面积承租，承租面积以实际探勘为准，承租方承租时需自筹资金按实际探勘面积自行隔断，租金单价从第二年起在上一年基础上按3%标准递增
A27: 21 | B27: 富源南路改貌农民新村安置房4栋一层 | C27: 879.34 | D27: 1-3 | E27: 23.00 | G27: 48540 | L27: 否
A28: 22 | B28: 富源南路改貌农民新村安置房4栋二层 | C28: 1449.38 | D28: 1-3 | E28: 9.00 | G28: 31307 | L28: 否
A29: 23 | B29: 富源南路改貌农民新村安置房5栋一层 | C29: 67.00 | D29: 1-3 | E29: 23.00 | G29: 3698 | L29: 否 | O29: 该标的此次不出租
A30: 24 | B30: 富源南路改貌农民新村安置房5栋一层 | C30: 184.87 | D30: 1-3 | E30: 23.00 | G30: 10205 | L30: 否 | O30: 租金单价从第二年起在上一年基础上按3%标准递增
A31: 25 | B31: 富源南路改貌农民新村安置房5栋二层 | C31: 730.00 | D31: 1-3 | E31: 9.00 | G31: 15768 | L31: 否 | O31: 该标的可拆分面积承租，承租面积以实际探勘为准，承租方承租时需自筹资金按实际探勘面积自行隔断，租金单价从第二年起在上一年基础上按3%标准递增
A32: 26 | B32: 南溪苑1栋负一层 | C32: 495.14 | D32: 1-3 | E32: 8.00 | G32: 9507 | L32: 否 | O32: 租金单价从第二年起在上一年基础上按3%标准递增
A33: 27 | B33: 南溪苑4-6栋负一层商业14-商业24 | C33: 593.12 | D33: 1-3 | E33: 12.00 | G33: 17082 | L33: 否 | O33: 该标的可拆分面积承租，承租面积以实际探勘为准，承租方承租时需自筹资金按实际探勘面积自行隔断，租金单价从第二年起在上一年基础上按3%标准递增
A34: 28 | B34: 玉带湾畔31、32栋负一层、负二层商铺1-8号 | C34: 477.80 | D34: 1-3 | E34: 18.00 | G34: 20641 | L34: 否 | O34: 该标的可拆分面积承租，承租面积以实际探勘为准，承租方承租时需自筹资金按实际探勘面积自行隔断，租金单价从第二年起在上一年基础上按3%标准递增
A35: 29 | B35: 玉带湾畔31、32栋负一层商场14号 | C35: 743.21 | D35: 1-3 | E35: 18.00 | G35: 32107 | L35: 否
A36: 30 | B36: 玉带湾畔31、32栋负二层商场14号 | C36: 743.21 | D36: 1-3 | E36: 18.00 | G36: 32107 | L36: 否
A37: 31 | B37: 玉带湾畔20栋负一层、一层1-9 | C37: 42.71 | D37: 1-3 | E37: 18.00 | G37: =C37*E37*12*0.2 -> 1845 | L37: 否
A38: 32 | B38: 玉带湾畔1、8、14栋负一层商铺1-2、库房19、库房22 | C38: 163.70 | D38: 1-3 | E38: 18.00 | G38: 7072 | L38: 否
A39: 33 | B39: 玉带溪苑1栋一层商业24号 | C39: 44.30 | D39: 1-3 | E39: 20.00 | G39: 2126 | L39: 否 | O39: 该标的可拆分面积承租，承租面积以实际探勘为准，承租方承租时需自筹资金按实际探勘面积自行隔断，租金单价从第二年起在上一年基础上按3%标准递增
A40: 34 | B40: 玉带溪苑1栋一层商业25号 | C40: 31.06 | D40: 1-3 | E40: 20.00 | G40: 1491 | L40: 否
A41: 35 | B41: 玉带溪苑1栋一层商业27-37号 | C41: 30.11 | D41: 1-3 | E41: 20.00 | G41: 1445 | L41: 否
A42: 36 | B42: 玉带溪苑5栋一层商业2-商业21 | C42: 586.96 | D42: 1-3 | E42: 20.00 | G42: 28174 | L42: 否
A43: 37 | B43: 玉带溪苑11栋一层商业1-1至商业1-14 | C43: 722.39 | D43: 1-3 | E43: 18.00 | G43: 31207 | L43: 否
A44: 38 | B44: 田园美庐1-2号楼负一层、一层商业1-2号 | C44: 72.14 | D44: 1-3 | E44: 20.00 | G44: 3463 | L44: 否 | O44: 租金单价从第二年起在上一年基础上按3%标准递增
A45: 39 | B45: 田园美庐1-2号楼负一层、一层商业3-5号 | C45: 58.83 | D45: 1-3 | E45: 20.00 | G45: 2824 | L45: 否
A46: 40 | B46: 田园美庐1-2号楼负一层、一层商业6号 | C46: 230.67 | D46: 1-3 | E46: 20.00 | G46: 11072 | L46: 否
A47: 41 | B47: 田园美庐1-2号楼负一层、一层商业7号 | C47: 119.04 | D47: 1-3 | E47: 20.00 | G47: 5714 | L47: 否
A48: 42 | B48: 田园美庐1-2号楼负一层、一层商业8号 | C48: 125.12 | D48: 1-3 | E48: 20.00 | G48: 6006 | L48: 否
A49: 43 | B49: 田园美庐1-2号楼负一层、一层商业9号 | C49: 120.95 | D49: 1-3 | E49: 20.00 | G49: 5806 | L49: 否
A50: 44 | B50: 田园美庐1-2号楼负一层、一层商业10号 | C50: 224.91 | D50: 1-3 | E50: 20.00 | G50: 10796 | L50: 否
A51: 45 | B51: 田园美庐1-2号楼负一层、一层商业11号 | C51: 78.05 | D51: 1-3 | E51: 20.00 | G51: 3746 | L51: 否
A52: 46 | B52: 田园美庐1-2号楼负一层、一层商业12号 | C52: 76.88 | D52: 1-3 | E52: 20.00 | G52: 3690 | L52: 否
A53: 47 | B53: 田园美庐1-2号楼负一层、一层商业13号 | C53: 228.97 | D53: 1-3 | E53: 20.00 | G53: 10991 | L53: 否
A54: 48 | B54: 田园美庐1-2号楼负一层、一层商业14号 | C54: 123.29 | D54: 1-3 | E54: 20.00 | G54: 5918 | L54: 否
A55: 49 | B55: 田园美庐1-2号楼负一层、一层商业15号 | C55: 117.28 | D55: 1-3 | E55: 20.00 | G55: 5629 | L55: 否
A56: 50 | B56: 田园美庐1-2号楼负一层、一层商业16号 | C56: 117.28 | D56: 1-3 | E56: 20.00 | G56: 5629 | L56: 否
A57: 51 | B57: 田园美庐1-2号楼负一层、一层商业17号 | C57: 117.28 | D57: 1-3 | E57: 20.00 | G57: 5629 | L57: 否
A58: 52 | B58: 田园美庐1-2号楼负一层、一层商业18号 | C58: 12.42 | D58: 1-3 | E58: 20.00 | G58: 596 | L58: 否
A59: 53 | B59: 田园美庐1-2号楼负一层、一层商业20号 | C59: 205.01 | D59: 1-3 | E59: 20.00 | G59: 9840 | L59: 否
A60: 54 | B60: 田园美庐1-2号楼负一层、一层商业22号 | C60: 104.09 | D60: 1-3 | E60: 20.00 | G60: 4996 | L60: 否
A61: 55 | B61: 田园美庐1-2号楼负一层、一层商业23号 | C61: 251.77 | D61: 1-3 | E61: 20.00 | G61: 12085 | L61: 否
A62: 56 | B62: 田园美庐1-2号楼负一层、一层商业24号 | C62: 103.14 | D62: 1-3 | E62: 20.00 | G62: 4951 | L62: 否
A63: 57 | B63: 田园美庐3-4号楼负一层商业1-商业11 | C63: 1588.40 | D63: 1-3 | E63: 20.00 | G63: 76243 | L63: 否
A64: 58 | B64: 田园美庐3-4号楼一层商业1-商业11 | C64: 1537.40 | D64: 1-3 | E64: 20.00 | G64: 73795 | L64: 否
A65: 59 | B65: 田园美庐5号楼负一层商业1-商业14 | C65: 307.84 | D65: 1-3 | E65: 18.00 | G65: 13299 | L65: 否
A66: 60 | B66: 田园美庐5号楼一层商业1-商业14 | C66: 36.50 | D66: 1-3 | E66: 18.00 | G66: 1577 | L66: 否
A67: 61 | B67: 田园美庐6号楼负一层商业2-商业9 | C67: 259.54 | D67: 1-3 | E67: 18.00 | G67: 11212 | L67: 否
A68: 62 | B68: 田园美庐6号楼负一层商业1、商业5-商业10、商业12-商业13 | C68: 74.90 | D68: 1-3 | E68: 18.00 | G68: 3236 | L68: 否
A69: 63 | B69: 花阁路8号[现花阁路2号1-7号] | C69: 34.33 | D69: 1-3 | E69: 100.00 | G69: =C69*E69*12*0.2 -> 8239 | K69: 1个月 | L69: 黔(2022)花溪区不动产权第0007051号 | O69: 租金单价从第二年起在上一年基础上按3%标准递增
A70: 64 | B70: 霞晖路(区民政局入口左侧) | C70: 71.5 | D70: 1-3 | E70: 90.00 | G70: 15444 | L70: 筑房权证花溪字第00397号
A71: 65 | B71: 明珠大道阳光花园8栋1单元1201号 | C71: 143.76 | D71: 1-3 | E71: 7.00 | G71: 2415 | L71: 否
A72: 66 | B72: 蟠龙巷44号(与溪北路交叉口处) | C72: 14.66 | D72: 1-3 | E72: 90.00 | G72: 3167 | L72: 花溪国用(96)字第2843号
A73: 67 | B73: 溪北路1号3号楼1层(建行花溪支行旁) | C73: 123.20 | D73: 1-3 | E73: 90.00 | G73: 26611 | L73: 花溪国用(2000)字第1308号
A74: 68 | B74: 溪北路1号3号楼2层(建行花溪支行旁) | C74: 102.90 | D74: 1-3 | E74: 80.00 | G74: 19757
A75: 69 | B75: 花阁路发达小区第1间 | C75: 25.54 | D75: 1-3 | E75: 80.00 | G75: 4904 | L75: 黔（2022）花溪区不动产权第0007793号
A76: 70 | B76: 花阁路发达小区第2间 | C76: 25.54 | D76: 1-3 | E76: 80.00 | G76: 4904
A77: 71 | B77: 花阁路发达小区第3间 | C77: 25.54 | D77: 1-3 | E77: 80.00 | G77: 4904
A78: 72 | B78: 花谷路57号第3间(12-22号之间) | C78: 29.22 | D78: 1-3 | E78: 35.00 | G78: 2454 | L78: 否
A79: 73 | B79: 花谷路57号第4间(12-23号之间) | C79: 29.05 | D79: 1-3 | E79: 35.00 | G79: 2440
A80: 74 | B80: 成荫巷6号1层11号 | C80: 12.87 | D80: 1-3 | E80: 70.00 | G80: 2162 | L80: 黔(2023)花溪区不动产权第0018941号
A81: 75 | B81: 霞晖路176号(松涛苑B栋1层2号) | C81: 31.42 | D81: 1-3 | E81: 90.00 | G81: 6787 | L81: 筑房产证花溪字第100010039号
A82: 76 | B82: 清溪路627号(老牛马市) | C82: 43.2 | D82: 1-3 | E82: 64.00 | G82: 6636 | L82: 花溪国用（1997）字第3061号
A83: 77 | B83: 清溪路629号(老牛马市) | C83: 43.2 | D83: 1-3 | E83: 64.00 | G83: 6636
A84: 78 | B84: 青岩镇交通路165号第2间 | C84: 28.71 | D84: 1-3 | E84: 60.00 | G84: 4134 | L84: 花国用（96）第2876号
A85: 79 | B85: 孟关村一组221号(孟关老法庭处，花溪农商行左侧) | C85: 68.42 | D85: 1-3 | E85: 30.00 | G85: 4926 | L85: 否
A86: 80 | C86: 60.05 | D86: 1-3 | E86: 30.00 | G86: 4324
A87: 81 | B87: 石板一村大门楼组86号(石板镇政府右侧) | C87: 28.74 | D87: 1-3 | E87: 30.00 | G87: 2069 | L87: 否
A88: 合计 | C88: =SUM(C4:C87) -> 26436.43

Sheet CD区
A1: 招租标的清单
A2: 序号 | B2: 资产名称 | C2: 招租面积（㎡） | D2: 租期（年） （最终以现场踏勘确认书为准） | E2: 挂牌单价（元/㎡•月） | F2: 租赁保证金（元） | G2: 交易保证金 | H2: 租金支付方式 | I2: 用途限制 | J2: 是否存在担保抵押等情况 | K2: 免租期 | L2: 是否办理不动产权证及权证号 | M2: 承租方性质要求 | N2: 承租方资格条件 | O2: 备注
A4: 1 | B4: 汽贸城CD区负一层 | C4: =246+534 -> 780.00 | D4: 1-3 | E4: 10.00 | F4: 不低于一个月租金 | G4: =C4*E4*12*0.2 -> 18720 | H4: 季度支付 | I4: 从事易燃易爆及危险化学品储存销售的除外。 | J4: 存在抵押 | K4: 按实际踏勘面积商谈免租期 | L4: 黔(2021)花溪区不动产权第0002500号 | M4: 法人、自然人、其他组织 | N4: 有一定经济实力，依法设立并合法存续的法人组织或具有完全民事行为能力的自然人。 | O4: 该标的需承租方自筹资金接通用电设备，可拆分面积承租，承租面积以实际探勘为准，租金单价从第二年起在上一年基础上按3%标准递增
A5: 2 | B5: 汽贸城CD区一层 | C5: 15472.20 | D5: 1-3 | E5: 16.00 | G5: =C5*E5*12*0.2 -> 594132 | L5: 黔(2023)花溪区不动产权第0003539号、黔(2021)花溪区不动产权第0002495号
A6: 3 | B6: 汽贸城CD区二层 | C6: 16247.40 | D6: 1-3 | E6: 8.00 | G6: =C6*E6*12*0.2 -> 311950 | L6: 黔(2023)花溪区不动产权第0003540号
A7: 合计 | C7: =SUM(C4:C6) -> 32499.6

Sheet Sheet3
